Cogmind - Beta 14 *** ADVENTURER MODE // 2024.08.18 @ 03:14:02 Player: FeralKatt Result: Self-destructed Performance ------------- Evolutions (3) 1500 Regions Visited (8) 1600 Robots Destroyed (23) 115 Value Destroyed (805) 805 Prototype IDs (25) 500 Alien Tech Used (0) 0 Bonus (300) 300 TOTAL SCORE: 4820 Bonus ------- Aligned with FarCom 300 Cogmind --------- Core Integrity 462/700 Matter 253/300 Energy 290/290 System Corruption 0% Temperature Warning (328) Movement Treading (160) Location -7/Factory Parts ------- > --- POWER (2) -------- Improved Deuterium Engine > --- PROPULSION (5) --- Heavy Treads Improved Titanium Leg Cesium-ion Thruster > --- UTILITY (4) ------ Large Storage Unit 0b10 Alert Chip > --- WEAPON (2) ------- Heavy Laser > --- INVENTORY (15) --- Light Treads Gravmag System VTOL Module Trap Scanner Energy Filter Light Armor Plating Dynamic Insulation System Dynamic Insulation System AWS/Thermal Peak State ------------ > --- POWER ------------ Improved Ion Engine > --- PROPULSION ------- Heavy Treads Aluminum Leg Aluminum Leg Aluminum Leg > --- UTILITY ---------- Small Storage Unit 0b10 Alert Chip ECM Suite Cloak of Protection > --- WEAPON ----------- AWS/Thermal > --- INVENTORY -------- Light Deuterium Engine Cesium-ion Thruster Large Storage Unit Trap Scanner Light Armor Plating Plasma Cutter [Rating: 50] Favorites ----------- Power Ion Engine Engine Ion Engine Propulsion Aluminum Leg Treads Heavy Treads Leg Aluminum Leg Flight Unit Cesium-ion Thruster Utility Small Storage Unit Device Cloak of Protection Storage Small Storage Unit Processor 0b10 Alert Chip Hackware Hacking Suite Protection Light Armor Plating Weapon AWS/Thermal Energy Gun AWS/Thermal Ballistic Gun Light Assault Rifle Build | -11 -10 -10 -10 -9 -8 -7 -7 -7 ------- Run | Yrd Mat Min Exi Min Mat Fac Was Fac Slots Evolved 6 | . . . . . 4 2 . . Power 1 | . . . . . 1 . . . Propulsion 3 | . . . . . 2 1 . . Utility 2 | . . . . . 1 1 . . Weapon . | . . . . . . . . . Parts Attached 26 | 6 . 1 2 . 4 1 4 8 Power 5 | 1 . . . . 1 . 1 2 Engine 5 | 1 . . . . 1 . 1 2 Core . | . . . . . . . . . Reactor . | . . . . . . . . . Propulsion 8 | 2 . 1 . . 2 . 1 2 Treads 1 | . . . . . . . 1 . Leg 5 | 2 . 1 . . 1 . . 1 Wheel . | . . . . . . . . . Hover . | . . . . . . . . . Flight 2 | . . . . . 1 . . 1 Utility 9 | 1 . . 1 . 1 1 2 3 Device 4 | . . . 1 . . 1 . 2 Storage 2 | 1 . . . . . . 1 . Processor 1 | . . . . . 1 . . . Hackware 1 | . . . . . . . . 1 Protection 1 | . . . . . . . 1 . Artifact . | . . . . . . . . . Weapon 4 | 2 . . 1 . . . . 1 Energy Gun 3 | 1 . . 1 . . . . 1 Energy Cannon . | . . . . . . . . . Ballistic Gun 1 | 1 . . . . . . . . Ballistic Cannon . | . . . . . . . . . Launcher . | . . . . . . . . . Special Weapon . | . . . . . . . . . Impact Weapon . | . . . . . . . . . Slashing Weapon . | . . . . . . . . . Piercing Weapon . | . . . . . . . . . Special Melee Weapon . | . . . . . . . . . Unidentified Prototypes . | . . . . . . . . . Parts Lost 6 | . . . . . . . 3 3 Power 1 | . . . . . . . . 1 Propulsion 2 | . . . . . . . 2 . Utility 3 | . . . . . . . 1 2 Weapon . | . . . . . . . . . Highest Loss Streak 3 | . . . . . . . 2 3 To Critical Strikes . | . . . . . . . . . Average Slot Usage (%) 79 | . 85 85 84 85 77 76 57 66 Engine 11 | . 14 14 14 14 9 7 5 8 Treads 1 | . . . . . . . 4 7 Leg 24 | . 28 28 28 28 27 23 11 6 Flight 1 | . . . . . 5 7 2 6 Device 10 | . . . 11 14 9 15 8 6 Storage 11 | . 14 14 14 14 9 7 5 7 Processor 2 | . . . . . 8 7 7 7 Energy Gun 11 | . 14 14 13 14 9 7 7 5 Ballistic Gun 2 | . 14 14 2 . . . . . Peak Build Rating 50 | 6 6 6 29 29 40 41 50 47 Average Rating 28 | 3 6 6 24 29 37 41 39 40 On Entrance 21 | . 6 6 6 29 29 40 41 39 Naked Turns . | . . . . . . . . . Heaviest Build 43 | 13 13 13 26 26 28 30 36 43 Greatest Support 70 | 20 20 20 20 20 30 30 70 70 Greatest Overweight (x) 1 | . . . 1 1 . . . . Average Overweight (x) . | . . . . 1 . . . . Largest Inventory Capacity 15 | 8 8 8 8 8 8 8 15 15 Average Capacity 8 | 6 8 8 8 8 8 8 8 15 Most Carried 10 | 5 6 6 8 8 8 7 8 10 Average Carried 6 | 2 4 6 7 7 6 7 5 6 Final Capacity 15 | 8 8 8 8 8 8 8 15 15 Final Carried 10 | 2 6 6 8 8 8 7 2 10 Class Distribution -------------------- 88% | Mutant 6% | Hacker-Mutant 5% | Infiltrator-Mutant Dominant Class ---------------- Mutant | -10/Materials Mutant | -10/Mines Mutant | -10/Exiles Mutant | -9/Mines Mutant | -8/Materials Infiltrator-Mutant | -7/Factory Mutant | -7/Waste Hacker-Mutant | -7/Factory Resources | -11 -10 -10 -10 -9 -8 -7 -7 -7 ----------- Run | Yrd Mat Min Exi Min Mat Fac Was Fac Matter Collected 463 | 260 3 . . 30 40 . 10 120 Remotely . | . . . . . . . . . Salvage Created 1678 | . 74 . . 66 190 107 919 322 Parts 53 | . 2 . . 5 15 4 13 14 Haulers Intercepted . | . . . . . . . . . Recyclers Shooed . | . . . . . . . . . Parts Field Recycled . | . . . . . . . . . Retrieved Matter . | . . . . . . . . . Parts Self-Destructed . | . . . . . . . . . Prevented . | . . . . . . . . . Kills | -11 -10 -10 -10 -9 -8 -7 -7 -7 ------- Run | Yrd Mat Min Exi Min Mat Fac Was Fac Combat Hostiles Destroyed 22 | . 2 . . 5 3 2 3 7 Guns 20 | . 1 . . 5 3 2 3 6 AOE 1 | . 1 . . . . . . . Classes Destroyed 7 | . 1 . . 1 2 1 1 1 Watcher 1 | . . . . . 1 . . . Swarmer 8 | . . . . 5 . . . 3 Grunt 5 | . 2 . . . . 1 . 2 Brawler 1 | . . . . . . . . 1 Duelist 1 | . . . . . . 1 . . Sentry 4 | . . . . . 3 . . 1 Compactor 3 | . . . . . . . 3 . Best Kill Streak 3 | . 2 . . 3 1 2 2 3 Combat Bots Only 3 | . 2 . . 3 1 2 2 3 Max Kills in Single Turn 1 | . 1 . . 1 1 1 1 1 Gunslinging . | . . . . . . . . . Exploded 1 | . 1 . . . . . . . Melee . | . . . . . . . . . Uniques/NPCs Destroyed . | . . . . . . . . . Combat | -11 -10 -10 -10 -9 -8 -7 -7 -7 -------- Run | Yrd Mat Min Exi Min Mat Fac Was Fac Hostile Shots Fired 141 | . 4 . . 16 2 1 10 108 Missed 35 | . 1 . . 5 1 . . 28 Damage Taken 1076 | . 61 . . 63 11 11 377 553 Core 253 | . 15 . . . . . 125 113 Absorbed by Shields 95 | . . . . . . . . 95 Ignored by Resistances 341 | . 17 . . 22 3 3 97 199 Core Remaining (%) 98 | 100 . . . 94 100 . . . Volleys Fired 43 | . 3 . . . . . . 40 Largest 2 | . 2 . . . . . . 1 Hottest 69 | . 60 . . . . . . 69 Shots Fired 150 | . 6 . . 15 6 8 75 40 Gun 150 | . 6 . . 15 6 8 75 40 Cannon . | . . . . . . . . . Launcher . | . . . . . . . . . Special . | . . . . . . . . . Kinetic 3 | . 3 . . . . . . . Thermal 144 | . . . . 15 6 8 75 40 Explosive . | . . . . . . . . . Electromagnetic 3 | . 3 . . . . . . . Robot Hit Streak 33 | . 5 . . 6 3 4 33 21 Robot Miss Streak 3 | . . . . 3 1 1 1 1 Penetration Max . | . . . . . . . . . Secondary Targets . | . . . . . . . . . Autonomous 105 | . . . . 15 6 8 76 . Shots Hit Robots 132 | . 5 . . 9 5 6 70 37 Core Hits 39 | . 4 . . 5 4 3 8 15 Critical Kills . | . . . . . . . . . Critical Parts Destroyed . | . . . . . . . . . Critical Strikes 1 | . . . . . . . . 1 Burn 1 | . . . . . . . . 1 Melee Attacks . | . . . . . . . . . Impact . | . . . . . . . . . Slashing . | . . . . . . . . . Piercing . | . . . . . . . . . Sneak Attacks . | . . . . . . . . . Combat Hostiles . | . . . . . . . . . Follow-up Attacks . | . . . . . . . . . Damage Inflicted 3400 | . 126 . . 259 117 176 2013 709 Guns 3321 | . 47 . . 259 117 176 2013 709 Cannons . | . . . . . . . . . Explosions 79 | . 79 . . . . . . . Melee . | . . . . . . . . . Ramming . | . . . . . . . . . Kinetic 6 | . 6 . . . . . . . Thermal 3353 | . 79 . . 259 117 176 2013 709 Explosive . | . . . . . . . . . Electromagnetic 41 | . 41 . . . . . . . Impact . | . . . . . . . . . Slashing . | . . . . . . . . . Piercing . | . . . . . . . . . Highest Corruption . | . . . . . . . . . Average Corruption . | . . . . . . . . . Corruption Purged . | . . . . . . . . . Corruption Blocked . | . . . . . . . . . Overload Shots . | . . . . . . . . . Overflow Damage . | . . . . . . . . . Projectiles . | . . . . . . . . . Explosions . | . . . . . . . . . Melee . | . . . . . . . . . Knockbacks . | . . . . . . . . . Impact . | . . . . . . . . . Kinetic . | . . . . . . . . . Secondary . | . . . . . . . . . Self-Inflicted Damage 30 | . 30 . . . . . . . Shots 1 | . 1 . . . . . . . Rammed . | . . . . . . . . . Targets Rammed . | . . . . . . . . . Kicked . | . . . . . . . . . Crushed . | . . . . . . . . . Highest Temperature 551 | . 47 . . . . . . 551 Average Temperature 180 | . 26 . . . . . . 194 Received Heat Transfer 302 | . 24 . . . 9 9 . 260 Effects 12 | . . . . . . . . 12 Shutdowns 2 | . . . . . . . . 2 Energy Bleed 2 | . . . . . . . . 2 Interference 5 | . . . . . . . . 5 Matter Decay 1 | . . . . . . . . 1 Damage (major) 2 | . . . . . . . . 2 Siege Activations . | . . . . . . . . . Robots Corrupted . | . . . . . . . . . Combat Hostiles . | . . . . . . . . . Parts Fried . | . . . . . . . . . Impact Corruptions . | . . . . . . . . . Robots Melted 1 | . . . . . . . . 1 Combat Hostiles 1 | . . . . . . . . 1 Parts Melted 4 | . . . . 2 . . . 2 Heat Transferred 4749 | . 50 . . 333 148 222 2553 1443 Parts Sabotaged . | . . . . . . . . . Parts Stolen . | . . . . . . . . . Parts Stripped . | . . . . . . . . . Power Chain Reactions 1 | . 1 . . . . . . . Alert | -11 -10 -10 -10 -9 -8 -7 -7 -7 ------- Run | Yrd Mat Min Exi Min Mat Fac Was Fac Peak Influence 135 | . 66 21 . 70 135 49 15 104 Initial 22 | . . 21 . . 22 1 13 . Average 21 | . 13 21 . 24 29 31 3 20 Maximum Alert Level . | . . . . . . . . . Low Security (%) 100 | 100 100 100 . 100 100 100 100 100 Level 1 . | . . . . . . . . . Level 2 . | . . . . . . . . . Level 3 . | . . . . . . . . . Level 4 . | . . . . . . . . . Level 5 . | . . . . . . . . . High Security . | . . . . . . . . . Max Security . | . . . . . . . . . Squads Dispatched . | . . . . . . . . . Investigation . | . . . . . . . . . Extermination . | . . . . . . . . . Reinforcement . | . . . . . . . . . Assault . | . . . . . . . . . Garrison . | . . . . . . . . . Intercept . | . . . . . . . . . Searches Triggered . | . . . . . . . . . Construction Impeded . | . . . . . . . . . Haulers Reinforced . | . . . . . . . . . Active Scanning Responses . | . . . . . . . . . Cargo Convoy Interrupts . | . . . . . . . . . Stealth | -11 -10 -10 -10 -9 -8 -7 -7 -7 --------- Run | Yrd Mat Min Exi Min Mat Fac Was Fac Distress Signals 4 | . . . . . 1 . . 3 Communications Jammed . | . . . . . . . . . Distress Signals . | . . . . . . . . . Times Spotted 36 | . 2 . . 6 5 3 7 13 Peak Tracking Total 7 | . 2 . . 3 2 3 3 7 Tactical Retreats 6 | . . . . 1 1 1 2 1 Traps | -11 -10 -10 -10 -9 -8 -7 -7 -7 ------- Run | Yrd Mat Min Exi Min Mat Fac Was Fac Traps Triggered 1 | . . . . . . 1 . . Indirectly . | . . . . . . . . . Trap Hack Attempts . | . . . . . . . . . Triggered . | . . . . . . . . . Disarmed . | . . . . . . . . . Reprogrammed . | . . . . . . . . . Reused . | . . . . . . . . . Traps Extracted . | . . . . . . . . . Installed . | . . . . . . . . . Triggered . | . . . . . . . . . Machines | -11 -10 -10 -10 -9 -8 -7 -7 -7 ---------- Run | Yrd Mat Min Exi Min Mat Fac Was Fac Machines Disabled 2 | . 1 . . . . 1 . . Max in Single Turn 1 | . 1 . . . . 1 . . Machines Repaired . | . . . . . . . . . Machines Dismantled . | . . . . . . . . . Machines Sabotaged . | . . . . . . . . . Overloaded Fab Kills . | . . . . . . . . . Hacking | -11 -10 -10 -10 -9 -8 -7 -7 -7 --------- Run | Yrd Mat Min Exi Min Mat Fac Was Fac Machines Accessed 6 | . 1 . 3 . 1 . . 1 Terminals 2 | . 1 . . . 1 . . . Fabricators 1 | . . . . . . . . 1 Repair Stations . | . . . . . . . . . Recycling Units . | . . . . . . . . . Scanalyzers . | . . . . . . . . . Garrison Access . | . . . . . . . . . Total Hacks 14 | . 1 . 9 . 3 . . 1 Successful 12 | . 1 . 9 . 1 . . 1 Failed 2 | . . . . . 2 . . . Catastrophic 1 | . . . . . 1 . . . Database Lockouts . | . . . . . . . . . Manual 1 | . . . 1 . . . . . Terminals 4 | . 1 . . . 3 . . . Fabricators 1 | . . . . . . . . 1 Repair Stations . | . . . . . . . . . Recycling Units . | . . . . . . . . . Scanalyzers . | . . . . . . . . . Garrison Access . | . . . . . . . . . Terminal Hacks 11 | . 1 . 9 . 1 . . . Record 8 | . . . 8 . . . . . Prototype ID Bank 1 | . 1 . . . . . . . Locate Traps 1 | . . . . . 1 . . . Derelict Proto ID Bank 1 | . . . 1 . . . . . Fabricator Hacks 1 | . . . . . . . . 1 Network Status 1 | . . . . . . . . 1 Repair Station Hacks . | . . . . . . . . . Recycling Unit Hacks . | . . . . . . . . . Scanalyzer . | . . . . . . . . . Garrison Access Hacks . | . . . . . . . . . Unauthorized Hacks . | . . . . . . . . . Terminals . | . . . . . . . . . Fabricators . | . . . . . . . . . Repair Stations . | . . . . . . . . . Recycling Units . | . . . . . . . . . Scanalyzers . | . . . . . . . . . Garrison Access . | . . . . . . . . . Data Cores Recovered . | . . . . . . . . . Used . | . . . . . . . . . Hacking Detections 2 | . . . . . 1 . . 1 Full Trace Events . | . . . . . . . . . Feedback Events . | . . . . . . . . . Feedback Blocked . | . . . . . . . . . Robot Schematics Acquired . | . . . . . . . . . Robots Built . | . . . . . . . . . Authchips . | . . . . . . . . . Time . | . . . . . . . . . Total Robot Build Rating . | . . . . . . . . . Part Schematics Acquired . | . . . . . . . . . Parts Built . | . . . . . . . . . Authchips . | . . . . . . . . . Time . | . . . . . . . . . Total Part Build Rating . | . . . . . . . . . Parts Repaired . | . . . . . . . . . Time . | . . . . . . . . . Parts Recycled . | . . . . . . . . . Recycled Matter . | . . . . . . . . . Retrieved Matter . | . . . . . . . . . Retrieved Components . | . . . . . . . . . Parts Scanalyzed . | . . . . . . . . . Part Schematics Acquired . | . . . . . . . . . Parts Damaged . | . . . . . . . . . Bothacking | -11 -10 -10 -10 -9 -8 -7 -7 -7 ------------ Run | Yrd Mat Min Exi Min Mat Fac Was Fac Used RIF Installer . | . . . . . . . . . Robots Hacked . | . . . . . . . . . Non-combat . | . . . . . . . . . Combat . | . . . . . . . . . Robot Hacks Applied . | . . . . . . . . . Relay Couplers Released . | . . . . . . . . . Fabnet Peak Effective % . | . . . . . . . . . Robots Rewired . | . . . . . . . . . Allies Hacked . | . . . . . . . . . Hacks Repelled . | . . . . . . . . . Allies | -11 -10 -10 -10 -9 -8 -7 -7 -7 -------- Run | Yrd Mat Min Exi Min Mat Fac Was Fac Total Allies 1 | . . . . . . . 1 . Largest Group 1 | . . . . . . . 1 . Highest-Rated Group 31 | . . . . . . . 31 . Highest-Rated Ally 31 | . . . . . . . 31 . Total Orders . | . . . . . . . . . Ally Attacks 5 | . . . . . . . 5 . Total Damage 103 | . . . . . . . 103 . Kills . | . . . . . . . . . Allies Corrupted . | . . . . . . . . . Allies Melted . | . . . . . . . . . Intel | -11 -10 -10 -10 -9 -8 -7 -7 -7 ------- Run | Yrd Mat Min Exi Min Mat Fac Was Fac Robot Analysis Total . | . . . . . . . . . Derelict Logs Recovered 1 | . . . . 1 . . . . Drone Launches . | . . . . . . . . . Drone Recoveries . | . . . . . . . . . Exploration | -11 -10 -10 -10 -9 -8 -7 -7 -7 ------------- Run | Yrd Mat Min Exi Min Mat Fac Was Fac Turns Passed 4134 | 52 133 249 1237 1052 549 93 302 467 Spaces Moved 2432 | 37 89 207 710 512 405 54 208 210 Core 6 | 6 . . . . . . . . Treads 328 | . . . . . . . 118 210 Legs 2098 | 31 89 207 710 512 405 54 90 . Wheels . | . . . . . . . . . Hover . | . . . . . . . . . Flight . | . . . . . . . . . Fastest Speed 50 | 50 120 120 120 190 120 120 120 160 Average Speed 155 | 108 120 120 172 190 120 120 142 160 Slowest Speed 190 | 120 120 120 190 190 120 120 160 160 Overloaded Moves . | . . . . . . . . . Propulsion Burnouts . | . . . . . . . . . Robots Hopped . | . . . . . . . . . Cave-ins Triggered . | . . . . . . . . . Exploration Rate (%) 38 | 3 30 48 92 56 34 1 74 7 Regions Visited 8 Branch Regions 3 Pre-discovered Areas . | . . . . . . . . . Known Exits Taken 1 | . . . . . 1 . . . Unknown Exits Taken 5 | 1 1 1 1 1 . . . . Scrap Searched 1 | . . . . 1 . . . . Spaces Dug . | . . . . . . . . . Terrain Destroyed 12 | . 2 . . 3 2 . 5 . Melee . | . . . . . . . . . Projectile 10 | . . . . 3 2 . 5 . AOE 2 | . 2 . . . . . . . Terrain Rammed . | . . . . . . . . . Walls Destroyed . | . . . . . . . . . Machines Disabled . | . . . . . . . . . Actions | -11 -10 -10 -10 -9 -8 -7 -7 -7 --------- Run | Yrd Mat Min Exi Min Mat Fac Was Fac Total 2750 | 48 110 207 725 592 470 83 214 301 Wait 199 | . 15 . . 79 47 28 . 30 Move 2425 | 36 88 206 709 511 404 54 207 210 Hop . | . . . . . . . . . Pick Up 40 | 6 4 . 8 1 9 . 1 11 Fast Attach 2 | 2 . . . . . . . . Attach 20 | 4 . . 2 . 3 1 4 6 Detach 2 | . . . . . . . . 2 Swap 4 | . . 1 . . 1 . . 2 Drop 15 | . . . 6 1 6 . 2 . Fire 43 | . 3 . . . . . . 40 Melee . | . . . . . . . . . Ram . | . . . . . . . . . Kick . | . . . . . . . . . Crush . | . . . . . . . . . Escape Stasis . | . . . . . . . . . Rewire . | . . . . . . . . . Trap . | . . . . . . . . . Miscellaneous . | . . . . . . . . . Route ------- -11/Scrapyard -10/Materials -10/Mines -10/Exiles (discovered 2 exits: *Min x2) -9/Mines -8/Materials (discovered 2 exits: *Fac x2) -7/Factory -7/Waste -7/Factory History --------- Turn | Location | Event 4 | -11/Scrapyard | Discovered new exit (range 15) 53 | -11/Scrapyard | Entered Materials 136 | -10/Materials | Discovered new exit (range 12) 186 | -10/Materials | Entered Mines 302 | -10/Mines | Build established: Mutant 375 | -10/Mines | Assembled infested the area 430 | -10/Mines | Deemed a non-threat by the Exiles lab entrance 430 | -10/Mines | Discovered new exit (range 5) 435 | -10/Mines | Entered Exiles 456 | -10/Exiles | Discovered new exit (range 14) 489 | -10/Exiles | Met 8R-AWN 509 | -10/Exiles | Met EX-HEX 551 | -10/Exiles | Met EX-BIN 572 | -10/Exiles | Aligned with FarCom system 573 | -10/Exiles | Given EX-Vault access code 635 | -10/Exiles | Opened EX-Vault 641 | -10/Exiles | Found Cloak of Protection 643 | -10/Exiles | Found 0b10 Alert Chip 651 | -10/Exiles | Found AWS/Thermal 699 | -10/Exiles | Warned to stay clear of 0b10 Research branches 753 | -10/Exiles | Met EX-DEC 824 | -10/Exiles | Visited The Gauntlet 1152 | -10/Exiles | Discovered new exit (range 14) 1672 | -10/Exiles | Stole three prototypes: AWS/Thermal, Cloak of Protection, 0b10 Alert Chip 1672 | -10/Exiles | Entered Mines 1701 | -9/Mines | Met a Derelict bent on vengeance 1710 | -9/Mines | Found a hidden stash of uninstalled traps 2680 | -9/Mines | Discovered new exit (range 13) 2724 | -9/Mines | Entered Materials 2724 | -8/Materials | Evolved 4 slots: Power x1, Propulsion x2, Utility x1 2725 | -8/Materials | Identified exit to Factory 3247 | -8/Materials | Discovered exit to Factory (range 10) 3273 | -8/Materials | Entered Factory 3273 | -7/Factory | Evolved 2 slots: Propulsion x1, Utility x1 3275 | -7/Factory | FarCom data flow suspended 3366 | -7/Factory | Sucked down chute 3366 | -7/Factory | Entered Waste 3367 | -7/Waste | Met a frightened Derelict 3383 | -7/Waste | Spotted C-40 Crusher 3393 | -7/Waste | Spotted C-40 Crusher 3430 | -7/Waste | Destroyed C-40 Crusher 3433 | -7/Waste | Spotted C-40 Crusher 3442 | -7/Waste | Destroyed C-40 Crusher 3468 | -7/Waste | Spotted C-40 Crusher 3478 | -7/Waste | Spotted C-40 Crusher 3480 | -7/Waste | Crushed by Compactor (0 parts destroyed, 1 dropped) 3480 | -7/Waste | Destroyed C-40 Crusher 3487 | -7/Waste | AWS/Thermal suddenly broke down 3501 | -7/Waste | Crushed by Compactor (1 part destroyed) 3504 | -7/Waste | Crushed by Compactor (1 part destroyed) 3520 | -7/Waste | Spotted C-40 Crusher 3549 | -7/Waste | Crushed by Compactor (0 parts destroyed, 1 dropped) 3553 | -7/Waste | Crushed by Compactor (1 part destroyed) 3556 | -7/Waste | Crushed by Compactor (0 parts destroyed, 1 dropped) 3578 | -7/Waste | Crushed by Compactor (0 parts destroyed, 1 dropped) 3648 | -7/Waste | Discovered new exit (range 13) 3668 | -7/Waste | Entered Factory 4135 | -7/Factory | Self-destructed Last Messages --------------- 04112_ G-47 Trooper destroyed. 04115_ Overheating: Lgt. Deuterium Engine damaged (-7). 04115_ Overheating: Cesium-ion Thruster damaged (-5). 04115_ Lgt. Deuterium Engine destroyed. 04115_ R-06 Scavenger collects Lgt. Treads. 04116_ Overheating: Energy bleed (-55). 04117_ Overheating: System interference. 04117_ Hvy. Laser temporarily disabled. 04117_ 0b10 Alert Chip temporarily disabled. 04118_ Overheating: Matter decay (-57). 04119_ Overheating: Energy bleed (-47). 04121_ Imp. Shield Generator destroyed. 04122_ Power failure, Imp. Deuterium Engine shutdown. 04127_ Hacking Suite destroyed. 04133_ Destroyed Lgt. Nuclear Core. 04134_ Overheating: System interference. 04134_ Hvy. Laser temporarily disabled. Map ----- +----------------------------------------------------+ | ????????????????????????????????????????????????? | | ????????????????????????????????????????????????? | | ????????????????????????????????????????????????? | | ????????????????????????????????????????????????? | | ????????????????????????????????????????????????? | | ????????????????????????????????????????????????? | | ??????????????????????????????? ? ?????????? | | ??????????????????????????????? ????????? | | ?????????????????????????####?# ????????? | | ???????????????????????? ? ????????? | | ???????????????????????? ? ????????? | | ????????????????????????? ? ????????? | | ????????????????????????? ? ?????????? | | ????????????????????????? ? ?????????? | | ?????????????????????????# """ """ #?????????? | | ?????????????????????????# """ """ #?????????? | | ?????????????????????????# """ """ #?????????? | | ?????????????????????????# #?????????? | | ?????????????????????????# """ """ #?????????? | | ?????????????????????????# """ """ #?????????? | | ?????????????############# """ """ #?????????? | | ????????????# """ # ##########? | | ????????????? "Y" # """ """ # #? | | ??????????????" " " # """ """ # #? | | ??????????????" " " ! # """ """ # #? | | ??????????????" " " @# # #? | | ??????????????" " " %g% """ """ %+% #? | | ??????????????" " " #g """ """ #% #? | | ??????????????" " " # r""" """ # #? | | ??????????????" " " # # #? | | ??????????????? " " # """ """ # #? | | ??????????????? " " # """ """ ##########? | | ??????????????? w # """ """ #?????????? | | ??????????????############ #?????????? | | ?????????????????????????# ########### | | ?????????????????????????######## # | | ????????????????????############# # ? | | ???????????????????# # # ?? | | ???????????????????# # # """ "?? | | ???????????????????# # # """ "?? | | ???????????????????# # + """ """ | | ???????????????????# # # | | ???????????????????# # # """ """ | | ???????????????????# ! # # """ ""? | | ???????????????????# # # """ "?? | | ???????????????????# # # ?? | | ???????????????????# # # ?? | | ???????????????????# + ##########? | | ???????????????????# # #?????????? | | ???????????????????############## ########### | +----------------------------------------------------+ Best States ------------- Heat Dissipation 34 Energy Generation 25 Energy Capacity 330 Matter Stores 300 Matter Capacity 300 Sight Range 16 Terrain Scan Density 10 ECM Strength 1 Cloak Strength 5 Armor Coverage 150 Resistance: KI 20 Resistance: TH 20 Resistance: EX 20 Resistance: EM 20 Resistance: I 20 Resistance: S 20 Resistance: P 20 Evasion (%) 55 Recoil Reduction 2 Offensive Hacking 20 Item Schematics ----------------- None Robot Schematics ------------------ None Fabricated ------------ Nothing Alien Tech Used ----------------- None Achievements -------------- None Challenges ------------ None Game ------ Seed DefenseCouplerTreads Manual? 0 Play Time 00:44:03 Cumulative 5.7 hours Start 2024.08.18 @ 02:29:59 End 2024.08.18 @ 03:14:02 Sessions 1 Manual Loads 0 Difficulty Adventurer Special Mode None Game No. 10 Rogue 0 Adventurer 10 Explorer 0 Win Type - Total 0 Types 0/0/0/0/0/0/0/0/0 Lore% 4 Gallery% 15 Achievement% 17 Wizard Run 0 Options --------- Layout 1 ASCII 0 Keyboard 0 Movement Numpad Keybinds 0 Fullscreen 1 Font 24/Smallcaps Map View 50x35 Zoom Use 0% Tactical HUD 1 Map Filters NONE Filters NONE Steam 1 RUN: f0d10c35-beed-4f7c-bfc0-3d717e7d7d85